fUSD/lending_fUSD_20240327
["ID","MTS","AMOUNT","RATE_DAILY","PERIOD"]
[320709552,1711525842020,-3227.12428303,0.00051446,14]
[320709553,1711525842029,-421.01255,0.00051507,30]
[320709554,1711525842040,-157.80874282,0.00051548,60]
[320709555,1711525842050,-610.45,0.00051592,2]
[320709556,1711525842059,-151.27131258,0.00051651,60]
[320709557,1711525842068,-157.80874282,0.00051672,60]
[320709558,1711525842077,-2062.89,0.00051794,120]
[320709559,1711525842087,-151.032716,0.00051798,97]
[320709560,1711525842095,-3399.0,0.000518,2]
[320709561,1711525842105,-500.0,0.00052054,60]
[320709562,1711525842114,-3000.0,0.00052054,120]
[320709563,1711525842123,-1382.87,0.00052054,2]
[320709564,1711525842132,-3000.0,0.00052191,120]
[320709565,1711525842144,-157.032716,0.00052198,98]
[320709566,1711525842154,-467.1,0.00052277,2]
[320709567,1711525842163,-157.80874282,0.0005232,60]
[320709568,1711525842172,-3000.0,0.00052328,120]
[320709569,1711525842181,-421.01255,0.00052329,30]
[320709570,1711525842190,-153.19826441,0.00052384,53]
[320709571,1711525842200,-157.032716,0.00052398,102]
[320709572,1711525842209,-157.80874282,0.00052406,60]
[320709573,1711525842220,-3000.0,0.00052465,120]
[320709574,1711525842232,-157.032716,0.00052498,99]
[320709575,1711525842241,-166.74515287,0.00052516,60]
[320709576,1711525842251,-17591.0,0.000526,120]
[320709577,1711525842261,-3000.0,0.00052602,120]
[320709578,1711525842270,-163.67173015,0.00052733,60]
[320709579,1711525842280,-3000.0,0.00052739,120]
[320709580,1711525842290,-157.032716,0.00052798,100]
[320709581,1711525842299,-431.21517928,0.00052876,60]
[320709582,1711525842315,-68.78482072,0.00052876,60]
[320709583,1711525842325,-3000.0,0.00052876,120]
[320709584,1711525842334,-1382.87,0.00052876,120]
[320709585,1711525842344,-5000.0,0.00053,120]
[320709586,1711525842354,-500.0,0.00053,120]
[320709587,1711525842521,-421.01255,0.00053151,30]
[320709588,1711525842531,-157.032716,0.00053198,101]
[320709589,1711525842541,-965.0,0.00053349,7]
[320709590,1711525842552,-157.032716,0.00053398,103]
[320709591,1711525842561,-150.0,0.00053424,30]
[320709592,1711525842571,-157.032716,0.00053498,102]
[320709593,1711525842581,-6512.96109434,0.00053698,7]
[320709594,1711525842590,-500.0,0.00053698,60]
[320709595,1711525842599,-1382.87,0.00053698,120]
[320709596,1711525842608,-680.0,0.00053699,120]
[320709597,1711525842617,-570.0,0.00053699,120]
[320709598,1711525842626,-525.0,0.00053699,120]
[320709599,1711525842636,-1026.0,0.000537,7]
[320709601,1711525842647,-155.74565308,0.00053754,60]
[320709603,1711525842657,-3227.12428303,0.00053755,14]
[320709605,1711525842666,-158.24291324,0.00053766,60]
[320709607,1711525842675,-158.24291324,0.00053788,60]
[320709609,1711525842684,-157.032716,0.00053798,103]
[320709611,1711525842693,-610.45,0.00053856,2]
[320709613,1711525842702,-184.40480274,0.000539,2]
[320709615,1711525842711,-489.06756496,0.000539,120]
[320709617,1711525842721,-207.06157426,0.000539,120]
[320709619,1711525842730,-335.9398268,0.000539,52]
[320709621,1711525842739,-340.62260757,0.000539,2]
[320709622,1711525842749,-6834.00745834,0.000539,2]
[320709624,1711525842759,-421.01255,0.00053973,30]
[320709625,1711525842768,-300.0,0.00053973,30]
[320709627,1711525842778,-150.0,0.00053973,30]
[320709629,1711525842787,-150.0,0.00053973,30]
[320709631,1711525842796,-150.0,0.00053973,30]
[320709633,1711525842806,-10399.47828544,0.00053998,120]
[320709635,1711525842815,-2092621.89523428,0.00053998,7]
[320709637,1711525842825,-150.0,0.00053999,14]
[320709640,1711525842834,-385343.61405374,0.00054,4]
[320709643,1711525842843,-250000.0,0.00054,120]
[320709646,1711525842853,-5000.0,0.00054,120]
[320709648,1711525842863,-228.86,0.00054,30]
[320709650,1711525842872,-400.50633036,0.00054,120]
[320709652,1711525842881,-309.66,0.00054,14]
[320709654,1711525842891,-97050.82258165,0.00054,40]
[320709657,1711525842904,-10924.09,0.00054,40]
[320709659,1711525842915,-2316.27425732,0.00054,40]
[320709661,1711525842927,-1655.5499999,0.00054,40]
[320709674,1711525843053,-7299.08677087,0.00054,40]
[320709675,1711525843088,-784.2102453,0.00054,40]
[320709679,1711525843436,-250.0,0.00048675,120]
[320709680,1711525843448,-9750.0,0.00048675,120]
[320709681,1711525843458,-26874.46947103,0.00054,40]
[320709682,1711525843467,-259.734257,0.00054,120]
[320709683,1711525843477,-151.0,0.00054,120]
[320709684,1711525843486,-151.0,0.00054,120]
[320709685,1711525843495,-151.0,0.00054,120]
[320709686,1711525843504,-180.5152,0.00054,120]
[320709687,1711525843514,-151.0,0.00054,120]
[320709688,1711525843523,-151.0,0.00054,120]
[320709689,1711525843532,-152.462734,0.00054,120]
[320709690,1711525843542,-151.0,0.00054,120]
[320709692,1711525843551,-151.0,0.00054,120]
[320709694,1711525843560,-151.0,0.00054,120]
[320709696,1711525843570,-151.0,0.00054,120]
[320709698,1711525843579,-151.0,0.00054,120]
[320709700,1711525843588,-151.0,0.00054,120]
[320709702,1711525843598,-151.0,0.00054,120]
[320709704,1711525843607,-151.0,0.00054,30]
[320709706,1711525843616,-183.663615,0.00054,30]
[320709708,1711525843626,-1300.492468,0.00054,120]
[320709710,1711525843635,-1300.492468,0.00054,120]
[320709712,1711525843645,-151.0,0.00054,120]
[320709714,1711525843655,-151.0,0.00054,120]
[320709716,1711525843664,-151.0,0.00054,120]
[320709719,1711525843673,-151.0,0.00054,120]
[320709722,1711525843683,-151.0,0.00054,120]
[320709724,1711525843692,-151.0,0.00054,7]
[320709726,1711525843701,-151.0,0.00054,120]
[320709728,1711525843711,-151.0,0.00054,120]
[320709730,1711525843720,-151.0,0.00054,120]
[320709732,1711525843729,-151.0,0.00054,120]
[320709734,1711525843739,-151.0,0.00054,120]
[320709736,1711525843748,-151.0,0.00054,120]
[320709738,1711525843757,-152.817238,0.00054,120]
[320709739,1711525843766,-301.694048,0.00054,120]
[320709741,1711525843775,-151.0,0.00054,14]
[320709743,1711525843784,-301.694048,0.00054,120]
[320709745,1711525843793,-1381.0,0.00054037,120]
[320709747,1711525843802,-267.646,0.00054037,120]
[320709749,1711525843812,-208.145,0.00054037,120]
[320709751,1711525843821,-1145.356,0.00054037,120]
[320709753,1711525843829,-13321.866,0.00054037,120]
[320709755,1711525843838,-1395.971,0.00054037,120]
[320709756,1711525843847,-2449.0,0.00054037,120]
[320709758,1711525843856,-403.085,0.00054037,120]
[320709760,1711525843865,-156.94418247,0.00054077,60]
[320709762,1711525843874,-409.3,0.0005411,30]
[320709764,1711525843883,-947.87,0.0005411,30]
[320709766,1711525843892,-409.3,0.0005411,30]
[320709768,1711525843903,-924.51,0.0005411,30]
[320709770,1711525843912,-924.51,0.0005411,30]
[320709772,1711525843921,-409.3,0.0005411,30]
[320709774,1711525843931,-924.51,0.0005411,30]
[320709776,1711525843940,-409.3,0.0005411,30]
[320709778,1711525843949,-409.3,0.0005411,30]
[320709780,1711525843958,-488.72,0.0005411,30]
[320709782,1711525843968,-681.0,0.0005411,120]
[320709784,1711525843977,-570.0,0.0005411,120]
[320709786,1711525843986,-525.0,0.0005411,120]
[320709788,1711525843995,-157.25738244,0.00054131,60]
[320709790,1711525844004,-157.032716,0.00054198,104]
[320709792,1711525844014,-157.80874282,0.00054198,60]
[320709794,1711525844023,-300.0,0.00054246,30]
[320709796,1711525844032,-517.72,0.00054247,30]
[320709798,1711525844041,-150.0,0.00054247,30]
[320709800,1711525844050,-150.0,0.00054247,30]
[320709802,1711525844059,-162.88,0.00054247,30]
[320709804,1711525844068,-347.44,0.00054247,30]
[320709806,1711525844078,-292.23,0.00054247,60]
[320709808,1711525844087,-415.7,0.00054247,30]
[320709810,1711525844097,-415.7,0.00054247,30]
[320709812,1711525844108,-517.72,0.00054247,30]
[320709814,1711525844117,-150.0,0.00054247,30]
[320709816,1711525844126,-347.44,0.00054247,30]
[320709818,1711525844135,-150.0,0.00054247,30]
[320709820,1711525844147,-347.44,0.00054247,30]
[320709822,1711525844156,-150.0,0.00054247,30]
[320709824,1711525844164,-415.7,0.00054247,30]
[320709826,1711525844174,-517.72,0.00054247,30]
[320709828,1711525844183,-339.98,0.00054247,30]
[320709829,1711525844192,-347.44,0.00054247,30]
[320709831,1711525844202,-150.0,0.00054247,30]
[320709833,1711525844212,-415.7,0.00054247,30]
[320709836,1711525844223,-415.7,0.00054247,30]
[320709838,1711525844234,-150.0,0.00054247,30]
[320709840,1711525844244,-150.0,0.00054247,30]
[320709842,1711525844252,-347.44,0.00054247,30]
[320709844,1711525844261,-415.7,0.00054247,30]
[320709845,1711525844272,-347.44,0.00054247,30]
[320709848,1711525844283,-415.7,0.00054247,30]
[320709850,1711525844293,-150.0,0.00054247,30]
[320709851,1711525844302,-347.44,0.00054247,30]
[320709853,1711525844312,-415.7,0.00054247,30]
[320709855,1711525844322,-347.44,0.00054247,30]
[320709857,1711525844331,-415.7,0.00054247,30]
[320709859,1711525844340,-347.44,0.00054247,30]
[320709861,1711525844350,-213.8,0.00054247,30]
[320709863,1711525844359,-415.7,0.00054247,30]
[320709865,1711525844369,-347.44,0.00054247,30]
[320709867,1711525844378,-150.0,0.00054247,30]
[320709869,1711525844387,-527.73,0.00054247,30]
[320709871,1711525844397,-415.7,0.00054247,30]
[320709873,1711525844406,-415.7,0.00054247,30]
[320709875,1711525844416,-415.7,0.00054247,30]
[320709877,1711525844425,-150.0,0.00054247,30]
[320709879,1711525844435,-349.96,0.00054247,30]
[320709881,1711525844444,-150.0,0.00054247,30]
[320709884,1711525844454,-161.83589466,0.00054321,60]
[320709885,1711525844463,-157.032716,0.00054398,104]
[320709888,1711525844473,-157.032716,0.00054498,105]
[320709889,1711525844483,-228.86,0.000545,30]
[320709891,1711525844492,-309.66,0.000545,14]
[320709893,1711525844501,-335.93982678,0.0005451,53]
[320709895,1711525844510,-159.43575342,0.00054517,3]
[320709897,1711525844519,-500.0,0.0005452,60]
[320709899,1711525844529,-1486.05922,0.0005452,71]
[320709901,1711525844539,-1382.87,0.0005452,120]
[320709903,1711525844548,-150.0,0.00054521,30]
[320709905,1711525844557,-150.0,0.00054521,30]
[320709907,1711525844567,-150.0,0.00054521,30]
[320709909,1711525844576,-150.0,0.00054521,30]
[320709911,1711525844585,-150.0,0.00054521,30]
[320709913,1711525844594,-151.01,0.00054521,30]
[320709915,1711525844606,-570.0,0.00054521,120]
[320709917,1711525844616,-5000.0,0.000547,2]
[320709919,1711525844625,-157.80874282,0.00054703,60]
[320709921,1711525844634,-151.0281998,0.00054709,60]
[320709923,1711525844643,-157.80874282,0.00054714,60]
[320709925,1711525844653,-5800.0,0.0005473,7]
[320709927,1711525844663,-155.74565308,0.00054739,60]
[320709929,1711525844672,-157.80874282,0.00054789,60]
[320709931,1711525844681,-155.74565308,0.00054792,60]
[320709933,1711525844691,-150.0,0.00054793,30]
[320709935,1711525844700,-150.0,0.00054793,14]
[320709937,1711525844709,-1165.34035352,0.00054794,4]
[320709939,1711525844718,-322.12114218,0.00054794,4]
[320709941,1711525844727,-161.88140801,0.00054794,120]
[320709943,1711525844736,-500.0,0.00054794,120]
[320709945,1711525844745,-500.0,0.00054794,120]
[320709947,1711525844754,-335.41481277,0.00054794,120]
[320709949,1711525844763,-500.0,0.00054794,120]
[320709951,1711525844772,-500.0,0.00054794,120]
[320709953,1711525844781,-500.0,0.00054794,120]
[320709955,1711525844790,-500.0,0.00054794,120]
[320709957,1711525844800,-500.0,0.00054794,120]
[320709958,1711525844809,-500.0,0.00054794,120]
[320709960,1711525844819,-500.0,0.00054794,120]
[320709962,1711525844828,-500.0,0.00054794,120]
[320709964,1711525844837,-500.0,0.00054794,120]
[320709966,1711525844845,-500.0,0.00054794,120]
[320709968,1711525844854,-500.0,0.00054794,120]
[320709970,1711525844863,-519.72862992,0.00054794,120]
[320709972,1711525844872,-500.0,0.00054794,120]
[320709974,1711525844881,-500.0,0.00054794,120]
[320709976,1711525844890,-500.0,0.00054794,120]
[320709978,1711525844902,-529.02762101,0.00054794,120]
[320709980,1711525844911,-500.0,0.00054794,120]
[320709982,1711525844920,-507.04,0.00054794,120]
[320709984,1711525844929,-500.0,0.00054794,120]
[320709986,1711525844938,-500.0,0.00054794,120]
[320709988,1711525844948,-500.0,0.00054794,120]
[320709990,1711525844957,-500.0,0.00054794,120]
[320709992,1711525844966,-151.0,0.00054794,120]
[320709994,1711525844975,-500.0,0.00054794,120]
[320709996,1711525844984,-500.0,0.00054794,120]
[320709998,1711525844993,-500.0,0.00054794,120]
[320710000,1711525845002,-500.0,0.00054794,120]
[320710002,1711525845011,-500.0,0.00054794,120]
[320710004,1711525845020,-500.0,0.00054794,120]
[320710006,1711525845030,-517.03,0.00054794,120]
[320710007,1711525845038,-151.0,0.00054794,120]
[320710008,1711525845047,-500.0,0.00054794,120]
[320710009,1711525845056,-652.29,0.00054794,120]
[320710010,1711525845065,-151.0,0.00054794,120]
[320710011,1711525845074,-500.0,0.00054794,120]
[320710012,1711525845083,-500.0,0.00054794,120]
[320710013,1711525845093,-500.0,0.00054794,120]
[320710014,1711525845102,-312.31923992,0.00054794,120]
[320710015,1711525845111,-500.0,0.00054794,120]
[320710016,1711525845120,-500.0,0.00054794,120]
[320710017,1711525845129,-529.79,0.00054794,120]
[320710018,1711525845138,-503.91674222,0.00054794,120]
[320710019,1711525845147,-593.81,0.00054794,120]
[320710020,1711525845156,-500.0,0.00054794,120]
[320710021,1711525845165,-500.0,0.00054794,120]
[320710022,1711525845174,-500.0,0.00054794,120]
[320710024,1711525845183,-500.0,0.00054794,120]
[320710026,1711525845193,-151.0,0.00054794,60]
[320710028,1711525845201,-500.0,0.00054794,120]
[320710030,1711525845211,-500.0,0.00054794,120]
[320710032,1711525845221,-500.0,0.00054794,120]
[320710034,1711525845232,-1123.17,0.00054794,120]
[320710036,1711525845242,-500.0,0.00054794,120]
[320710038,1711525845251,-500.0,0.00054794,120]
[320710040,1711525845261,-500.0,0.00054794,120]
[320710042,1711525845271,-500.0,0.00054794,120]
[320710044,1711525845280,-151.0,0.00054794,120]
[320710046,1711525845289,-500.0,0.00054794,120]
[320710048,1711525845298,-533.25,0.00054794,120]
[320710050,1711525845310,-500.0,0.00054794,120]
[320710052,1711525845320,-500.0,0.00054794,120]
[320710054,1711525845329,-1252.45,0.00054794,120]
[320710056,1711525845339,-500.0,0.00054794,120]
[320710058,1711525845348,-500.0,0.00054794,120]
[320710060,1711525845356,-537.74,0.00054794,120]
[320710062,1711525845365,-889.63,0.00054794,120]
[320710063,1711525845375,-500.0,0.00054794,120]
[320710065,1711525845384,-2115.38,0.00054794,120]
[320710068,1711525845394,-1138.93,0.00054794,120]
[320710085,1711525845558,-151.0,0.00054794,120]
[320710088,1711525845569,-151.0,0.00054794,120]
[320710090,1711525845578,-500.0,0.00054794,120]
[320710091,1711525845588,-500.0,0.00054794,120]
[320710094,1711525845598,-503.14,0.00054794,120]
[320710096,1711525845608,-500.0,0.00054794,120]
[320710098,1711525845618,-500.0,0.00054794,120]
[320710100,1711525845627,-500.0,0.00054794,120]
[320710102,1711525845636,-720.64,0.00054794,120]
[320710104,1711525845646,-503.75,0.00054794,120]
[320710106,1711525845655,-1867.32,0.00054794,120]
[320710107,1711525845664,-196.529674,0.00054794,30]
[320710110,1711525845674,-196.529674,0.00054794,30]
[320710112,1711525845683,-584.18,0.00054794,120]
[320710114,1711525845693,-196.529674,0.00054794,30]
[320710115,1711525845702,-196.529674,0.00054794,30]
[320710117,1711525845712,-991.68,0.00054794,120]
[320710119,1711525845721,-500.0,0.00054794,120]
[320710121,1711525845733,-500.0,0.00054794,120]
[320710123,1711525845742,-1405.26,0.00054794,120]
[320710125,1711525845752,-500.0,0.00054794,120]
[320710127,1711525845761,-500.0,0.00054794,120]
[320710129,1711525845770,-500.0,0.00054794,120]
[320710132,1711525845780,-1133.93,0.00054794,120]
[320710133,1711525845789,-500.0,0.00054794,120]
[320710135,1711525845799,-360.66476448,0.00054794,120]
[320710138,1711525845808,-500.0,0.00054794,120]
[320710140,1711525845818,-627.75,0.00054794,120]
[320710141,1711525845827,-500.0,0.00054794,120]
[320710143,1711525845837,-151.0,0.00054794,120]
[320710145,1711525845846,-151.0,0.00054794,120]
[320710147,1711525845855,-758.88,0.00054794,120]
[320710149,1711525845864,-657.28,0.00054794,120]
[320710151,1711525845873,-500.0,0.00054794,120]
[320710153,1711525845882,-500.0,0.00054794,120]
[320710156,1711525845892,-500.0,0.00054794,120]
[320710157,1711525845902,-500.0,0.00054794,120]
[320710160,1711525845912,-514.50659667,0.00054794,120]
[320710161,1711525845921,-500.0,0.00054794,120]
[320710163,1711525845930,-500.0,0.00054794,120]
[320710165,1711525845939,-500.0,0.00054794,120]
[320710167,1711525845948,-917.05,0.00054794,120]
[320710169,1711525845957,-545.82,0.00054794,120]
[320710171,1711525845966,-857.61,0.00054794,120]
[320710173,1711525845975,-151.0,0.00054794,120]
[320710175,1711525845984,-199.345428,0.00054794,120]
[320710177,1711525845993,-500.0,0.00054794,120]
[320710179,1711525846003,-500.0,0.00054794,120]
[320710182,1711525846012,-608.00968626,0.00054794,120]
[320710184,1711525846022,-500.0,0.00054794,120]
[320710187,1711525846031,-217.107115,0.00054794,120]
[320710190,1711525846040,-217.107115,0.00054794,120]
[320710192,1711525846048,-1360.42,0.00054794,120]
[320710195,1711525846058,-217.107115,0.00054794,120]
[320710198,1711525846067,-754.09,0.00054794,120]
[320710200,1711525846075,-217.107115,0.00054794,120]
[320710202,1711525846085,-916.55,0.00054794,120]
[320710204,1711525846094,-500.0,0.00054794,120]
[320710206,1711525846105,-1333.29,0.00054794,120]
[320710209,1711525846114,-500.0,0.00054794,120]
[320710210,1711525846123,-640.04,0.00054794,120]
[320710212,1711525846132,-501.208439,0.00054794,120]
[320710214,1711525846141,-606.77,0.00054794,120]
[320710216,1711525846151,-501.208439,0.00054794,120]
[320710218,1711525846160,-500.0,0.00054794,120]
[320710220,1711525846169,-501.208439,0.00054794,120]
[320710222,1711525846179,-501.208439,0.00054794,120]
[320710224,1711525846189,-500.0,0.00054794,120]
[320710226,1711525846198,-994.86,0.00054794,120]
[320710229,1711525846208,-813.06,0.00054794,120]
[320710230,1711525846217,-500.0,0.00054794,120]
[320710233,1711525846231,-500.0,0.00054794,120]
[320710234,1711525846240,-500.0,0.00054794,120]
[320710236,1711525846250,-151.0,0.00054794,120]
[320710238,1711525846259,-151.0,0.00054794,120]
[320710241,1711525846270,-993.24,0.00054794,120]
[320710243,1711525846280,-500.0,0.00054794,120]
[320710245,1711525846289,-500.0,0.00054794,120]
[320710246,1711525846298,-500.0,0.00054794,120]
[320710248,1711525846308,-805.62,0.00054794,120]
[320710251,1711525846319,-500.0,0.00054794,120]
[320710253,1711525846329,-192.89413349,0.00054794,120]
[320710255,1711525846338,-500.0,0.00054794,120]
[320710256,1711525846347,-151.0,0.00054794,120]
[320710258,1711525846357,-151.0,0.00054794,120]
[320710261,1711525846366,-779.51,0.00054794,120]
[320710263,1711525846376,-849.56,0.00054794,120]
[320710265,1711525846386,-151.0,0.00054794,120]
[320710267,1711525846395,-151.0,0.00054794,120]
[320710269,1711525846406,-500.0,0.00054794,120]
[320710271,1711525846415,-151.0,0.00054794,120]
[320710273,1711525846425,-151.0,0.00054794,120]
[320710274,1711525846434,-734.05,0.00054794,120]
[320710277,1711525846444,-500.0,0.00054794,120]
[320710278,1711525846455,-1210.2,0.00054794,120]
[320710281,1711525846466,-500.0,0.00054794,120]
[320710283,1711525846477,-811.54,0.00054794,120]
[320710285,1711525846488,-500.0,0.00054794,120]
[320710287,1711525846500,-500.0,0.00054794,120]
[320710289,1711525846515,-500.0,0.00054794,120]
[320710291,1711525846525,-500.0,0.00054794,120]
[320710293,1711525846536,-500.0,0.00054794,120]
[320710295,1711525846547,-595.63,0.00054794,120]
[320710297,1711525846556,-998.7,0.00054794,120]
[320710298,1711525846566,-151.0,0.00054794,120]
[320710300,1711525846575,-151.0,0.00054794,120]
[320710302,1711525846585,-742.86,0.00054794,120]
[320710304,1711525846595,-500.0,0.00054794,120]
[320710306,1711525846605,-192.04226154,0.00054794,120]
[320710308,1711525846615,-500.0,0.00054794,120]
[320710310,1711525846625,-576.56,0.00054794,120]
[320710312,1711525846635,-500.0,0.00054794,120]
[320710314,1711525846645,-413.57153355,0.00054794,120]
[320710316,1711525846656,-755.06,0.00054794,120]
[320710319,1711525846665,-673.95,0.00054794,120]
[320710321,1711525846674,-528.46,0.00054794,120]
[320710323,1711525846684,-1493.73,0.00054794,120]
[320710325,1711525846693,-157.618783,0.00054794,120]
[320710326,1711525846702,-279.83563043,0.00054794,120]
[320710329,1711525846713,-157.618783,0.00054794,120]
[320710331,1711525846724,-151.0,0.00054794,120]
[320710333,1711525846734,-151.0,0.00054794,120]
[320710335,1711525846743,-524.89157641,0.00054794,120]
[320710337,1711525846752,-157.618783,0.00054794,120]
[320710339,1711525846762,-157.618783,0.00054794,120]
[320710341,1711525846771,-500.0,0.00054794,120]
[320710343,1711525846780,-500.0,0.00054794,120]
[320710345,1711525846789,-500.0,0.00054794,120]
[320710347,1711525846799,-975.02,0.00054794,120]
[320710349,1711525846808,-509.43,0.00054794,120]
[320710351,1711525846818,-815.37,0.00054794,120]
[320710353,1711525846828,-500.0,0.00054794,120]
[320710355,1711525846837,-500.0,0.00054794,120]
[320710357,1711525846846,-400.615535,0.00054794,120]
[320710359,1711525846855,-239.240921,0.00054794,120]
[320710361,1711525846864,-400.615535,0.00054794,120]
[320710363,1711525846873,-500.0,0.00054794,120]
[320710365,1711525846882,-239.240921,0.00054794,120]
[320710367,1711525846891,-500.0,0.00054794,120]
[320710369,1711525846901,-1245.34,0.00054794,120]
[320710371,1711525846910,-400.615535,0.00054794,120]
[320710373,1711525846920,-500.0,0.00054794,120]
[320710375,1711525846929,-400.615535,0.00054794,120]
[320710377,1711525846938,-239.240921,0.00054794,120]
[320710379,1711525846947,-239.240921,0.00054794,120]
[320710381,1711525846956,-500.0,0.00054794,120]
[320710383,1711525846966,-500.0,0.00054794,120]
[320710385,1711525846975,-151.0,0.00054794,120]
[320710387,1711525846985,-151.0,0.00054794,120]
[320710389,1711525846995,-500.0,0.00054794,120]
[320710391,1711525847004,-2377.62,0.00054794,120]
[320710393,1711525847014,-886.7,0.00054794,120]
[320710395,1711525847023,-500.0,0.00054794,120]
[320710397,1711525847032,-500.0,0.00054794,120]
[320710399,1711525847041,-689.41,0.00054794,120]
[320710401,1711525847050,-500.0,0.00054794,120]
[320710403,1711525847060,-500.0,0.00054794,120]
[320710405,1711525847069,-157.105192,0.00054794,120]
[320710407,1711525847078,-157.105192,0.00054794,120]
[320710409,1711525847087,-1394.65,0.00054794,120]
[320710411,1711525847096,-841.34,0.00054794,120]
[320710413,1711525847106,-157.105192,0.00054794,120]
[320710415,1711525847115,-500.0,0.00054794,120]
[320710417,1711525847125,-157.105192,0.00054794,120]
[320710419,1711525847134,-500.0,0.00054794,120]
[320710421,1711525847143,-500.0,0.00054794,120]
[320710423,1711525847153,-500.0,0.00054794,120]
[320710425,1711525847162,-500.0,0.00054794,7]
[320710427,1711525847171,-500.0,0.00054794,120]
[320710429,1711525847180,-531.18,0.00054794,120]
[320710431,1711525847190,-605.04,0.00054794,30]
[320710433,1711525847200,-647.81,0.00054794,120]
[320710435,1711525847209,-1268.08,0.00054794,120]
[320710437,1711525847220,-500.0,0.00054794,120]
[320710439,1711525847230,-500.0,0.00054794,120]
[320710441,1711525847242,-510.54,0.00054794,120]
[320710443,1711525847252,-683.62,0.00054794,120]
[320710445,1711525847261,-594.29,0.00054794,120]
[320710447,1711525847270,-500.0,0.00054794,120]
[320710449,1711525847280,-500.0,0.00054794,120]
[320710451,1711525847289,-500.0,0.00054794,120]
[320710453,1711525847298,-1134.24,0.00054794,120]
[320710455,1711525847307,-346.70948617,0.00054794,120]
[320710457,1711525847318,-560.81,0.00054794,120]
[320710459,1711525847329,-500.0,0.00054794,120]
[320710461,1711525847338,-500.0,0.00054794,120]
[320710463,1711525847347,-500.0,0.00054794,120]
[320710465,1711525847357,-510.33,0.00054794,120]
[320710467,1711525847366,-720.05,0.00054794,120]
[320710469,1711525847375,-207.7923745,0.00054794,120]
[320710471,1711525847384,-835.07,0.00054794,120]
[320710473,1711525847394,-2817.42,0.00054794,120]
[320710475,1711525847404,-10000.0,0.00054794,2]
[320710477,1711525847414,-474.82,0.00054794,120]
[320710479,1711525847423,-500.0,0.00054794,120]
[320710481,1711525847433,-547.3072972,0.00054794,120]
[320710483,1711525847442,-500.0,0.00054794,120]
[320710485,1711525847452,-752.42,0.00054794,120]
[320710487,1711525847461,-586.03,0.00054794,120]
[320710489,1711525847470,-769.68,0.00054794,120]
[320710491,1711525847479,-150.0,0.00054794,120]
[320710493,1711525847489,-500.0,0.00054794,120]
[320710495,1711525847498,-882.61,0.00054794,120]
[320710497,1711525847507,-716.88,0.00054794,120]
[320710499,1711525847517,-500.0,0.00054794,120]
[320710501,1711525847527,-823.85,0.00054794,120]
[320710503,1711525847536,-448.03469562,0.00054794,120]
[320710505,1711525847545,-500.0,0.00054794,120]
[320710508,1711525847555,-823.95,0.00054794,120]
[320710510,1711525847565,-151.0,0.00054794,120]